fUST/lending_fUST_20250520
["ID","MTS","AMOUNT","RATE_DAILY","PERIOD"]
[361678067,1747685433371,-500.0,0.00016561,2]
[361678068,1747685433382,-500.0,0.00016561,2]
[361678069,1747685433392,-494.38732184,0.00016561,2]
[361678070,1747685433403,-500.0,0.00016561,2]
[361678071,1747685433412,-500.0,0.00016561,2]
[361678072,1747685433422,-500.0,0.00016561,2]
[361678073,1747685433432,-500.0,0.00016561,2]
[361678074,1747685433443,-500.0,0.00016561,2]
[361678075,1747685433453,-500.0,0.00016561,2]
[361678076,1747685433463,-500.0,0.00016561,2]
[361678077,1747685433473,-500.0,0.00016561,2]
[361678078,1747685433483,-500.0,0.00016561,2]
[361678079,1747685433493,-500.0,0.00016561,2]
[361678080,1747685433504,-500.0,0.00016561,2]
[361678081,1747685433515,-212.35735062,0.00016562,3]
[361678082,1747685433525,-12638.53552368,0.00016562,3]
[361678083,1747685433535,-998.68447496,0.00016562,3]
[361678084,1747685433545,-314.45853212,0.00016562,3]
[361678085,1747685433555,-16874.46708098,0.00016562,3]
[361678086,1747685433564,-16599.01861511,0.00016562,2]
[361678087,1747685433574,-151.0,0.00016562,2]
[361678088,1747685433584,-151.0,0.00016562,2]
[361678089,1747685433594,-154.04372,0.00016562,2]
[361678090,1747685433604,-151.0,0.00016562,2]
[361678091,1747685433614,-151.0,0.00016562,2]
[361678092,1747685433624,-805.763728,0.00016562,2]
[361678093,1747685433634,-805.763728,0.00016562,2]
[361678094,1747685433643,-805.763728,0.00016562,2]
[361678095,1747685433653,-805.763728,0.00016562,2]
[361678096,1747685433663,-274.354769,0.00016562,2]
[361678097,1747685433672,-274.354769,0.00016562,2]
[361678098,1747685433682,-274.354769,0.00016562,2]
[361678099,1747685433692,-151.0,0.00016562,2]
[361678100,1747685433701,-154.683887,0.00016562,2]
[361678101,1747685433711,-151.0,0.00016562,2]
[361678102,1747685433721,-151.0,0.00016562,2]
[361678103,1747685433731,-151.0,0.00016562,2]
[361678104,1747685433741,-151.0,0.00016562,2]
[361678105,1747685433750,-151.0,0.00016562,2]
[361678106,1747685433761,-151.0,0.00016562,2]
[361678107,1747685433771,-151.0,0.00016562,2]
[361678108,1747685433781,-151.0,0.00016562,2]
[361678109,1747685433792,-645.768709,0.00016562,2]
[361678110,1747685433801,-645.768709,0.00016562,2]
[361678111,1747685433811,-645.768709,0.00016562,2]
[361678112,1747685433820,-645.768709,0.00016562,2]
[361678113,1747685433830,-645.768709,0.00016562,2]
[361678114,1747685433839,-645.768709,0.00016562,2]
[361678115,1747685433849,-151.963771,0.00016562,2]
[361678116,1747685433859,-151.0,0.00016562,2]
[361678117,1747685433869,-151.0,0.00016562,2]
[361678118,1747685433879,-151.0,0.00016562,2]
[361678119,1747685433889,-151.0,0.00016562,2]
[361678120,1747685433899,-151.0,0.00016562,2]
[361678121,1747685433909,-151.0,0.00016562,2]
[361678122,1747685433919,-151.0,0.00016562,2]
[361678123,1747685433930,-151.0,0.00016562,2]
[361678124,1747685433940,-151.0,0.00016562,2]
[361678125,1747685433950,-151.0,0.00016562,2]
[361678126,1747685433964,-151.0,0.00016562,2]
[361678127,1747685433973,-151.0,0.00016562,2]
[361678128,1747685433983,-151.0,0.00016562,2]
[361678129,1747685433993,-152.440132,0.00016562,2]
[361678130,1747685434003,-1615.02255,0.00016562,2]
[361678131,1747685434013,-1615.02255,0.00016562,2]
[361678132,1747685434023,-1615.02255,0.00016562,2]
[361678133,1747685434032,-1615.02255,0.00016562,2]
[361678134,1747685434042,-1615.02255,0.00016562,2]
[361678135,1747685434052,-1615.02255,0.00016562,2]
[361678136,1747685434061,-1615.02255,0.00016562,2]
[361678137,1747685434071,-1615.02255,0.00016562,2]
[361678138,1747685434081,-308.419466,0.00016562,2]
[361678139,1747685434091,-308.419466,0.00016562,2]
[361678140,1747685434100,-308.419466,0.00016562,2]
[361678141,1747685434110,-308.419466,0.00016562,2]
[361678142,1747685434120,-151.0,0.00016562,2]
[361678143,1747685434130,-404.493514,0.00016562,2]
[361678144,1747685434139,-404.493514,0.00016562,2]
[361678145,1747685434149,-404.493514,0.00016562,2]
[361678146,1747685434160,-151.0,0.00016562,2]
[361678147,1747685434169,-151.0,0.00016562,2]
[361678148,1747685434183,-151.0,0.00016562,2]
[361678149,1747685434194,-404.493514,0.00016562,2]
[361678150,1747685434204,-404.493514,0.00016562,2]
[361678151,1747685434215,-404.493514,0.00016562,2]
[361678152,1747685434225,-236.136622,0.00016562,2]
[361678153,1747685434235,-5866.22,0.00016562,3]
[361678154,1747685434245,-715.0,0.00016562,2]
[361678155,1747685434256,-715.0,0.00016562,2]
[361678156,1747685434267,-628.89896715,0.00016562,2]
[361678157,1747685434277,-2933.11,0.00016562,3]
[361678158,1747685434288,-321.0,0.00016562,2]
[361678159,1747685434298,-151.0,0.00016562,2]
[361678160,1747685434309,-364.08220511,0.00016562,2]
[361678161,1747685434319,-151.0,0.00016562,2]
[361678162,1747685434329,-151.0,0.00016562,2]
[361678163,1747685434339,-151.0,0.00016562,2]
[361678164,1747685434348,-151.0,0.00016562,2]
[361678165,1747685434358,-151.0,0.00016562,2]
[361678166,1747685434368,-151.0,0.00016562,2]
[361678167,1747685434378,-151.0,0.00016562,2]
[361678168,1747685434388,-151.0,0.00016562,2]
[361678169,1747685434399,-151.0,0.00016562,2]
[361678170,1747685434409,-151.0,0.00016562,2]
[361678171,1747685434419,-151.0,0.00016562,2]
[361678172,1747685434430,-907.836216,0.00016562,2]
[361678173,1747685434440,-907.836216,0.00016562,2]
[361678174,1747685434450,-907.836216,0.00016562,2]
[361678175,1747685434460,-907.836216,0.00016562,2]
[361678176,1747685434470,-907.836216,0.00016562,2]
[361678177,1747685434480,-907.836216,0.00016562,2]
[361678178,1747685434490,-907.836216,0.00016562,2]
[361678179,1747685434500,-907.836216,0.00016562,2]
[361678180,1747685434510,-907.836216,0.00016562,2]
[361678181,1747685434520,-907.836216,0.00016562,2]
[361678182,1747685434530,-907.836216,0.00016562,2]
[361678183,1747685434540,-907.836216,0.00016562,2]
[361678184,1747685434549,-360.70002411,0.00016562,2]
[361678185,1747685434559,-321.316116,0.00016562,2]
[361678186,1747685434568,-321.316116,0.00016562,2]
[361678187,1747685434577,-321.316116,0.00016562,2]
[361678188,1747685434587,-321.316116,0.00016562,2]
[361678189,1747685434596,-321.316116,0.00016562,2]
[361678190,1747685434606,-321.316116,0.00016562,2]
[361678191,1747685434615,-321.316116,0.00016562,2]
[361678192,1747685434624,-321.316116,0.00016562,2]
[361678193,1747685434634,-274.354769,0.00016563,2]
[361678194,1747685434644,-151.0,0.00016563,2]
[361678195,1747685434653,-151.0,0.00016563,2]
[361678196,1747685434663,-151.0,0.00016563,2]
[361678197,1747685434673,-151.0,0.00016563,2]
[361678198,1747685434684,-645.768709,0.00016563,2]
[361678199,1747685434694,-645.768709,0.00016563,2]
[361678200,1747685434703,-151.0,0.00016563,2]
[361678201,1747685434713,-202.625362,0.00016563,2]
[361678202,1747685434722,-151.0,0.00016563,2]
[361678203,1747685434734,-1615.02255,0.00016563,2]
[361678204,1747685434744,-1615.02255,0.00016563,2]
[361678205,1747685434753,-404.493514,0.00016563,2]
[361678206,1747685434763,-151.0,0.00016563,2]
[361678207,1747685434772,-404.493514,0.00016563,2]
[361678208,1747685434782,-151.0,0.00016563,2]
[361678209,1747685434791,-151.0,0.00016563,2]
[361678210,1747685434801,-151.0,0.00016563,2]
[361678211,1747685434811,-907.836216,0.00016563,2]
[361678212,1747685434820,-907.836216,0.00016563,2]
[361678213,1747685434830,-907.836216,0.00016563,2]
[361678214,1747685434839,-907.836216,0.00016563,2]
[361678215,1747685434849,-151.0,0.00016569,2]
[361678216,1747685434859,-151.0,0.00016569,2]
[361678217,1747685434869,-151.0,0.00016569,2]
[361678218,1747685434878,-151.0,0.00016569,2]
[361678219,1747685434887,-151.0,0.00016569,2]
[361678220,1747685434898,-234.210676,0.00016569,2]
[361678221,1747685434907,-151.0,0.00016569,2]
[361678222,1747685434917,-805.763728,0.00016569,2]
[361678223,1747685434927,-805.763728,0.00016569,2]
[361678224,1747685434937,-274.354769,0.00016569,2]
[361678225,1747685434946,-151.0,0.00016569,2]
[361678226,1747685434956,-151.0,0.00016569,2]
[361678227,1747685434965,-151.0,0.00016569,2]
[361678228,1747685434975,-175.078776,0.00016569,2]
[361678229,1747685434985,-645.768709,0.00016569,2]
[361678230,1747685434998,-645.768709,0.00016569,2]
[361678231,1747685435007,-151.0,0.00016569,2]
[361678232,1747685435017,-151.0,0.00016569,2]
[361678233,1747685435026,-1615.02255,0.00016569,2]
[361678234,1747685435035,-1615.02255,0.00016569,2]
[361678235,1747685435044,-308.419466,0.00016569,2]
[361678236,1747685435054,-308.419466,0.00016569,2]
[361678237,1747685435063,-404.493514,0.00016569,2]
[361678238,1747685435072,-151.0,0.00016569,2]
[361678239,1747685435082,-404.493514,0.00016569,2]
[361678240,1747685435091,-151.0,0.00016569,2]
[361678241,1747685435101,-151.0,0.00016569,2]
[361678242,1747685435110,-151.0,0.00016569,2]
[361678243,1747685435119,-907.836216,0.00016569,2]
[361678244,1747685435129,-907.836216,0.00016569,2]
[361678245,1747685435139,-500.0,0.00016569,2]
[361678246,1747685435148,-151.0,0.0001657,2]
[361678247,1747685435357,-151.0,0.0001657,2]
[361678248,1747685435367,-151.0,0.0001657,2]
[361678249,1747685435377,-317.836779,0.0001657,2]
[361678250,1747685435386,-317.836779,0.0001657,2]
[361678251,1747685435395,-317.836779,0.0001657,2]
[361678252,1747685435405,-317.836779,0.0001657,2]
[361678253,1747685435414,-317.836779,0.0001657,2]
[361678254,1747685435424,-317.836779,0.0001657,2]
[361678255,1747685435434,-151.0,0.0001657,2]
[361678256,1747685435443,-151.0,0.0001657,2]
[361678257,1747685435452,-151.0,0.0001657,2]
[361678258,1747685435461,-151.0,0.0001657,2]
[361678259,1747685435471,-151.0,0.0001657,2]
[361678260,1747685435480,-151.0,0.0001657,2]
[361678261,1747685435489,-151.0,0.0001657,2]
[361678262,1747685435499,-151.0,0.0001657,2]
[361678263,1747685435508,-151.0,0.0001657,2]
[361678264,1747685435517,-151.0,0.0001657,2]
[361678265,1747685435526,-298.679094,0.0001657,2]
[361678266,1747685435536,-151.0,0.0001657,2]
[361678267,1747685435545,-151.0,0.0001657,2]
[361678268,1747685435555,-151.0,0.0001657,2]
[361678269,1747685435564,-151.0,0.0001657,2]
[361678270,1747685435573,-292.268458,0.0001657,2]
[361678271,1747685435582,-151.0,0.0001657,2]
[361678272,1747685435591,-151.0,0.0001657,2]
[361678273,1747685435600,-1615.02255,0.0001657,2]
[361678274,1747685435610,-1615.02255,0.0001657,2]
[361678275,1747685435619,-308.419466,0.0001657,2]
[361678276,1747685435629,-308.419466,0.0001657,2]
[361678277,1747685435638,-308.419466,0.0001657,2]
[361678278,1747685435647,-308.419466,0.0001657,2]
[361678279,1747685435657,-404.493514,0.0001657,2]
[361678280,1747685435666,-151.0,0.0001657,2]
[361678281,1747685435677,-404.493514,0.0001657,2]
[361678282,1747685435686,-151.0,0.0001657,2]
[361678283,1747685435697,-151.0,0.0001657,2]
[361678284,1747685435707,-151.0,0.0001657,2]
[361678285,1747685435719,-907.836216,0.0001657,2]
[361678286,1747685435728,-907.836216,0.0001657,2]
[361678287,1747685435739,-151.0,0.00016571,2]
[361678288,1747685435749,-317.836779,0.00016571,2]
[361678289,1747685435758,-317.836779,0.00016571,2]
[361678290,1747685435768,-151.0,0.00016571,2]
[361678291,1747685435778,-151.0,0.00016571,2]
[361678292,1747685435788,-160.0,0.00016571,2]
[361678293,1747685435799,-500.0,0.00016571,2]
[361678294,1747685435808,-500.0,0.00016571,2]
[361678295,1747685435818,-500.0,0.00016571,2]
[361678296,1747685435827,-151.0,0.00016572,2]
[361678297,1747685435836,-151.0,0.00016572,2]
[361678298,1747685435845,-151.0,0.00016572,2]
[361678299,1747685435856,-151.0,0.00016572,2]
[361678300,1747685435866,-267.715268,0.00016572,2]
[361678301,1747685435876,-317.836779,0.00016572,2]
[361678302,1747685435885,-317.836779,0.00016572,2]
[361678303,1747685435895,-317.836779,0.00016572,2]
[361678304,1747685435904,-317.836779,0.00016572,2]
[361678305,1747685435914,-151.0,0.00016572,2]
[361678306,1747685435923,-151.0,0.00016572,2]
[361678307,1747685435932,-151.0,0.00016572,2]
[361678308,1747685435942,-805.763728,0.00016572,2]
[361678309,1747685435951,-805.763728,0.00016572,2]
[361678310,1747685435960,-274.354769,0.00016572,2]
[361678311,1747685435969,-151.0,0.00016572,2]
[361678312,1747685435978,-151.0,0.00016572,2]
[361678313,1747685435986,-645.768709,0.00016572,2]
[361678314,1747685435996,-645.768709,0.00016572,2]
[361678315,1747685436006,-151.0,0.00016572,2]
[361678316,1747685436016,-151.0,0.00016572,2]
[361678317,1747685436025,-1615.02255,0.00016572,2]
[361678318,1747685436034,-1615.02255,0.00016572,2]
[361678319,1747685436044,-1615.02255,0.00016572,2]
[361678320,1747685436053,-1615.02255,0.00016572,2]
[361678321,1747685436062,-1615.02255,0.00016572,2]
[361678322,1747685436071,-1615.022545,0.00016572,2]
[361678323,1747685436080,-308.419466,0.00016572,2]
[361678324,1747685436089,-308.419466,0.00016572,2]
[361678325,1747685436098,-404.493514,0.00016572,2]
[361678326,1747685436107,-151.0,0.00016572,2]
[361678327,1747685436117,-404.493514,0.00016572,2]
[361678328,1747685436127,-151.0,0.00016572,2]
[361678329,1747685436136,-198.980649,0.00016572,2]
[361678330,1747685436146,-843.20846675,0.00016573,13]
[361678331,1747685436155,-151.0,0.00016573,2]
[361678332,1747685436164,-151.0,0.00016573,2]
[361678333,1747685436173,-151.0,0.00016573,2]
[361678334,1747685436186,-151.0,0.00016573,2]
[361678335,1747685436195,-151.0,0.00016573,2]
[361678336,1747685436204,-151.0,0.00016573,2]
[361678337,1747685436213,-151.0,0.00016573,2]
[361678338,1747685436223,-151.0,0.00016573,2]
[361678339,1747685436231,-151.0,0.00016573,2]
[361678340,1747685436240,-151.0,0.00016573,2]
[361678341,1747685436249,-805.763728,0.00016573,2]
[361678342,1747685436258,-805.763728,0.00016573,2]
[361678343,1747685436268,-274.354769,0.00016573,2]
[361678344,1747685436277,-151.0,0.00016573,2]
[361678345,1747685436288,-151.0,0.00016573,2]
[361678346,1747685436297,-645.768709,0.00016573,2]
[361678347,1747685436308,-645.768709,0.00016573,2]
[361678348,1747685436317,-151.0,0.00016573,2]
[361678349,1747685436327,-151.0,0.00016573,2]
[361678350,1747685436336,-151.0,0.00016573,2]
[361678351,1747685436345,-151.0,0.00016573,2]
[361678352,1747685436355,-170.307084,0.00016573,2]
[361678353,1747685436364,-308.419466,0.00016573,2]
[361678354,1747685436374,-308.419466,0.00016573,2]
[361678355,1747685436383,-404.493514,0.00016573,2]
[361678356,1747685436393,-404.493514,0.00016573,2]
[361678357,1747685436402,-404.493514,0.00016573,2]
[361678358,1747685436411,-151.0,0.00016573,2]
[361678359,1747685436420,-151.0,0.00016573,2]
[361678360,1747685436430,-151.0,0.00016573,2]
[361678361,1747685436439,-404.493514,0.00016573,2]
[361678362,1747685436448,-404.493514,0.00016573,2]
[361678363,1747685436458,-404.493511,0.00016573,2]
[361678364,1747685436468,-151.0,0.00016573,2]
[361678365,1747685436477,-151.0,0.00016573,2]
[361678366,1747685436485,-151.0,0.00016573,2]
[361678367,1747685436495,-151.0,0.00016573,2]
[361678368,1747685436504,-292.804001,0.00016573,2]
[361678369,1747685436513,-151.0,0.00016574,2]
[361678370,1747685436523,-151.0,0.00016574,2]
[361678371,1747685436532,-294.614831,0.00016574,2]
[361678372,1747685436542,-317.836779,0.00016574,2]
[361678373,1747685436551,-317.836779,0.00016574,2]
[361678374,1747685436559,-151.0,0.00016574,2]
[361678375,1747685436568,-151.0,0.00016582,2]
[361678376,1747685436577,-151.0,0.00016582,2]
[361678377,1747685436586,-151.0,0.00016583,2]
[361678378,1747685436595,-151.0,0.00016583,2]
[361678379,1747685436604,-308.419466,0.00016583,2]
[361678380,1747685436614,-308.419466,0.00016583,2]
[361678381,1747685436623,-151.0,0.00016584,2]
[361678382,1747685436632,-151.0,0.00016584,2]
[361678383,1747685436642,-317.836779,0.00016584,2]
[361678384,1747685436651,-317.836779,0.00016584,2]
[361678385,1747685436661,-317.836779,0.00016584,2]
[361678386,1747685436670,-317.836779,0.00016584,2]
[361678387,1747685436680,-205.755285,0.00016584,2]
[361678388,1747685436689,-151.0,0.00016584,2]
[361678389,1747685436699,-151.0,0.00016584,2]
[361678390,1747685436709,-805.763728,0.00016584,2]
[361678391,1747685436718,-805.763728,0.00016584,2]
[361678392,1747685436728,-805.763728,0.00016584,2]
[361678393,1747685436739,-805.763728,0.00016584,2]
[361678394,1747685436748,-274.354769,0.00016584,2]
[361678395,1747685436758,-274.354769,0.00016584,2]
[361678396,1747685436767,-645.768709,0.00016584,2]
[361678397,1747685436777,-645.768709,0.00016584,2]
[361678398,1747685436786,-645.768709,0.00016584,2]
[361678399,1747685436795,-645.768709,0.00016584,2]
[361678400,1747685436805,-308.419466,0.00016584,2]
[361678401,1747685436814,-308.419466,0.00016584,2]
[361678402,1747685436823,-151.0,0.00016584,2]
[361678403,1747685436834,-2564.2364759,0.00016797,2]
[361678404,1747685436845,-500.0,0.00016843,2]
[361678405,1747685436855,-317.836779,0.00016867,2]
[361678406,1747685436867,-317.836783,0.00016867,2]
[361678407,1747685436878,-151.0,0.00016867,2]
[361678408,1747685436888,-805.763728,0.00016867,2]
[361678409,1747685436898,-805.763728,0.00016867,2]
[361678410,1747685436908,-274.354769,0.00016867,2]
[361678411,1747685436918,-274.354774,0.00016867,2]
[361678412,1747685436928,-645.768709,0.00016867,2]
[361678413,1747685436937,-645.768709,0.00016867,2]
[361678414,1747685436947,-308.419466,0.00016867,2]
[361678415,1747685436956,-308.419456,0.00016867,2]
[361678416,1747685436966,-1082.51753277,0.00016868,2]
[361678417,1747685436975,-156.1965812,0.00017062,7]
[361678418,1747685436985,-500.0,0.00017117,2]
[361678419,1747685436994,-805.763728,0.0001721,2]
[361678420,1747685437003,-805.763728,0.0001721,2]
[361678421,1747685437012,-2564.2364759,0.0001721,2]
[361678422,1747685437022,-500.0,0.00017391,2]
[361678423,1747685437031,-357.5948461,0.00017397,2]
[361678424,1747685437041,-151.0,0.00017437,2]
[361678425,1747685437051,-207.4,0.00017437,2]
[361678426,1747685437061,-805.763728,0.00017624,2]
[361678427,1747685437070,-805.763722,0.00017624,2]
[361678428,1747685437079,-2564.2364759,0.00017624,2]
[361678429,1747685437089,-449.22090129,0.00017665,2]
[361678430,1747685437098,-154.2938119,0.00017671,2]
[361678431,1747685437108,-158.0921024,0.00017671,2]
[361678432,1747685437117,-569.7291921,0.00017671,2]
[361678433,1747685437126,-201.9999754,0.00017671,2]
[361678434,1747685437135,-175.9518997,0.00017671,2]
[361678435,1747685437144,-158.0921024,0.00017671,2]
[361678436,1747685437154,-569.7291921,0.00017671,2]
[361678437,1747685437163,-153.0,0.00017671,2]
[361678438,1747685437174,-158.0921024,0.00017671,2]
[361678439,1747685437187,-175.9518997,0.00017671,2]
[361678440,1747685437197,-153.0,0.00017671,2]
[361678441,1747685437207,-569.7291921,0.00017671,2]
[361678442,1747685437216,-158.0921024,0.00017671,2]
[361678443,1747685437226,-153.0,0.00017671,2]
[361678444,1747685437236,-175.9518997,0.00017671,2]
[361678445,1747685437245,-569.7291921,0.00017671,2]
[361678446,1747685437255,-158.0921024,0.00017671,2]
[361678447,1747685437265,-569.7291921,0.00017671,2]
[361678448,1747685437275,-175.9518997,0.00017671,2]
[361678449,1747685437284,-158.0921024,0.00017671,2]
[361678450,1747685437294,-175.9518997,0.00017671,2]
[361678451,1747685437303,-569.7291921,0.00017671,2]
[361678452,1747685437313,-175.9518997,0.00017671,2]
[361678453,1747685437323,-158.0921024,0.00017671,2]
[361678454,1747685437332,-569.7291921,0.00017671,2]
[361678455,1747685437342,-569.7291921,0.00017671,2]
[361678456,1747685437352,-158.0921024,0.00017671,2]
[361678457,1747685437361,-175.9518997,0.00017671,2]
[361678458,1747685437370,-158.0921024,0.00017671,2]
[361678459,1747685437379,-569.7291921,0.00017671,2]
[361678460,1747685437389,-569.7291921,0.00017671,2]
[361678461,1747685437398,-158.0921024,0.00017671,2]
[361678462,1747685437407,-155.0267423,0.00017671,2]
[361678463,1747685437416,-815.4797921,0.00017671,2]
[361678464,1747685437426,-2933.12,0.00017929,3]
[361678465,1747685437435,-1466.56,0.00017929,3]
[361678466,1747685437445,-733.28,0.00017929,3]
[361678467,1747685437454,-366.64,0.00017929,3]
[361678468,1747685437463,-11732.44,0.00017932,3]
[361678469,1747685437472,-5866.22,0.00017932,3]
[361678470,1747685437481,-998.68447496,0.00017932,3]
[361678471,1747685437490,-314.45853212,0.00017932,3]
[361678472,1747685437500,-420.0,0.00017964,2]
[361678473,1747685437509,-1680.0,0.00017995,2]
[361678474,1747685437519,-2564.2364759,0.00018038,2]
[361678475,1747685437529,-88229.66562443,0.000181,2]
[361678562,1747685440491,-575.50391567,0.00016396,2]
[361679117,1747685446340,-441.78273,0.00016396,2]
[361679119,1747685446352,-3982.71335433,0.00016396,2]
[361679121,1747685446363,-321.316116,0.00016562,2]
[361679123,1747685446373,-321.316116,0.00016562,2]
[361679125,1747685446383,-321.316116,0.00016562,2]
[361679127,1747685446393,-321.316107,0.00016562,2]
[361679129,1747685446403,-510.1034031,0.00016571,2]
[361679131,1747685446413,-1364.28152461,0.00018,2]
[361679133,1747685446423,-27922.30493737,0.000181,2]
[361679135,1747685446439,-21317.76523875,0.000181,2]
[361679137,1747685446449,-151.0,0.000181,2]
[361679139,1747685446460,-1584.88309821,0.00018127,2]
[361679141,1747685446470,-1364.2815246,0.00018133,2]
[361679144,1747685446480,-20134.55,0.000183,5]
[361679146,1747685446490,-151.0,0.00018314,2]
[361679147,1747685446501,-155.234,0.00018355,2]
[361679150,1747685446512,-42557.09807131,0.00018356,2]
[361679152,1747685446522,-400.0,0.00018356,2]
[361679154,1747685446532,-430.0,0.00018356,2]
[361679156,1747685446541,-430.0,0.00018356,2]
[361679158,1747685446550,-430.0,0.00018356,2]
[361679160,1747685446560,-430.0,0.00018356,2]
[361679162,1747685446569,-219.46690057,0.00018356,2]
[361679164,1747685446579,-430.0,0.00018356,2]
[361679166,1747685446588,-512.06980326,0.00018356,2]
[361679168,1747685446597,-430.0,0.00018356,2]
[361679170,1747685446606,-430.0,0.00018356,2]
[361679172,1747685446617,-430.0,0.00018356,2]
[361679174,1747685446626,-430.0,0.00018356,2]
[361679176,1747685446637,-430.0,0.00018356,2]
[361679178,1747685446646,-430.0,0.00018356,2]
[361679179,1747685446656,-430.0,0.00018356,2]
[361679180,1747685446664,-430.0,0.00018356,2]
[361679181,1747685446673,-430.0,0.00018356,2]
[361679182,1747685446683,-430.0,0.00018356,2]
[361679183,1747685446694,-430.0,0.00018356,2]
[361679184,1747685446703,-430.0,0.00018356,2]
[361679185,1747685446713,-430.0,0.00018356,2]
[361679186,1747685446722,-401.6623163,0.00018356,2]
[361679187,1747685446732,-430.0,0.00018356,2]
[361679188,1747685446741,-430.0,0.00018356,2]
[361679189,1747685446750,-430.0,0.00018356,2]
[361679190,1747685446759,-430.0,0.00018356,2]
[361679191,1747685446768,-430.0,0.00018356,2]
[361679192,1747685446777,-430.0,0.00018356,2]
[361679193,1747685446787,-173.66318835,0.00018356,2]
[361679194,1747685446796,-430.0,0.00018356,2]
[361679195,1747685446806,-430.0,0.00018356,2]
[361679196,1747685446815,-430.0,0.00018356,2]
[361679197,1747685446824,-430.0,0.00018356,2]
[361679198,1747685446834,-430.0,0.00018356,2]
[361679199,1747685446843,-430.0,0.00018356,2]
[361679200,1747685446852,-430.0,0.00018356,2]
[361679201,1747685446861,-400.0,0.00018356,2]
[361679202,1747685446870,-430.0,0.00018356,2]
[361679203,1747685446880,-430.0,0.00018356,2]
[361679205,1747685446889,-430.0,0.00018356,2]
[361679207,1747685446899,-430.0,0.00018356,2]
[361679209,1747685446908,-412.05914421,0.00018356,2]
[361679211,1747685446917,-437.04,0.00018356,2]
[361679213,1747685446927,-503.56931981,0.00018356,2]
[361679215,1747685446936,-430.0,0.00018356,2]
[361679217,1747685446946,-430.0,0.00018356,2]
[361679219,1747685446955,-430.0,0.00018356,2]
[361679221,1747685446965,-430.0,0.00018356,2]
[361679223,1747685446975,-430.0,0.00018356,2]
[361679225,1747685446985,-430.0,0.00018356,2]
[361679227,1747685446994,-430.0,0.00018356,2]
[361679229,1747685447003,-430.0,0.00018356,2]
[361679231,1747685447015,-430.0,0.00018356,2]
[361679233,1747685447024,-430.0,0.00018356,2]
[361679236,1747685447034,-430.0,0.00018356,2]
[361679238,1747685447043,-400.0,0.00018356,2]
[361679240,1747685447052,-430.0,0.00018356,2]
[361679242,1747685447062,-430.0,0.00018356,2]
[361679244,1747685447077,-430.0,0.00018356,2]
[361679246,1747685447086,-430.0,0.00018356,2]
[361679248,1747685447095,-430.0,0.00018356,2]
[361679250,1747685447104,-300.0,0.00018356,2]
[361679252,1747685447113,-430.0,0.00018356,2]
[361679254,1747685447123,-430.0,0.00018356,2]
[361679256,1747685447133,-430.0,0.00018356,2]
[361679258,1747685447143,-728.66,0.00018356,2]
[361679260,1747685447152,-430.0,0.00018356,2]
[361679262,1747685447161,-430.0,0.00018356,2]
[361679264,1747685447170,-318.42529364,0.00018356,2]
[361679266,1747685447179,-430.0,0.00018356,2]
[361679269,1747685447193,-430.0,0.00018356,2]
[361679271,1747685447202,-430.0,0.00018356,2]
[361679273,1747685447211,-430.0,0.00018356,2]